lending/lending_fUSD_20250621
["ID","MTS","AMOUNT","RATE_DAILY","PERIOD"]
[366847400,1750510239894,-500.0,0.0002467,2]
[366847401,1750510239905,-600.91536243,0.0002467,2]
[366847402,1750510239915,-1000.0,0.0002467,2]
[366847403,1750510239924,-1000.0,0.0002467,2]
[366847404,1750510239934,-1000.0,0.0002467,2]
[366847405,1750510239944,-1000.0,0.0002467,2]
[366847406,1750510239953,-150.0,0.0002467,2]
[366847407,1750510239963,-150.0,0.00024671,2]
[366847408,1750510239973,-150.0,0.00024671,2]
[366847409,1750510239982,-501.8520891,0.00024673,2]
[366847410,1750510239992,-500.0,0.00024673,2]
[366847411,1750510240001,-160.1772958,0.00024673,2]
[366847412,1750510240010,-361.00977431,0.00024673,2]
[366847413,1750510240020,-160.17830352,0.00024673,2]
[366847414,1750510240031,-150.0,0.00024675,2]
[366847415,1750510240041,-300.0,0.00024682,2]
[366847416,1750510240051,-150.0,0.00024682,2]
[366847417,1750510240061,-150.0,0.00024682,2]
[366847418,1750510240071,-150.0,0.00024682,2]
[366847419,1750510240084,-13719.3059627,0.00024683,2]
[366847420,1750510240094,-4419.5281551,0.00024683,2]
[366847421,1750510240105,-77283.704001,0.00024683,2]
[366847422,1750510240114,-5599.0327377,0.00024683,2]
[366847423,1750510240125,-237632.3387587,0.00024683,2]
[366847424,1750510240135,-10804.7867815,0.00024683,2]
[366847425,1750510240145,-15886.7622324,0.00024683,2]
[366847426,1750510240156,-35676.9704887,0.00024683,2]
[366847427,1750510240165,-555.22722078,0.00024683,2]
[366847428,1750510240175,-1000.0,0.00024685,2]
[366847429,1750510240187,-150.0,0.00024686,2]
[366847430,1750510240197,-1000.0,0.00024687,2]
[366847431,1750510240207,-151.48,0.00024689,2]
[366847432,1750510240217,-500.0,0.00024689,2]
[366847433,1750510240227,-500.0,0.00024689,2]
[366847434,1750510240236,-500.0,0.00024689,2]
[366847435,1750510240246,-500.0,0.00024689,2]
[366847436,1750510240255,-505.27650657,0.00024689,2]
[366847437,1750510240265,-311.46059264,0.00024689,2]
[366847438,1750510240275,-500.0,0.00024689,2]
[366847439,1750510240284,-607.27701632,0.00024689,2]
[366847440,1750510240293,-357.71891414,0.0002469,120]
[366847441,1750510240302,-1423.83854959,0.0002469,120]
[366847442,1750510240312,-155.0,0.00024691,2]
[366847443,1750510240321,-150.0,0.00024691,2]
[366847444,1750510240332,-3794468.41132178,0.00024692,4]
[366847445,1750510240346,-660.05954712,0.00024692,4]
[366847446,1750510240357,-1912.9,0.00024692,4]
[366847447,1750510240368,-2924.10999377,0.00024692,4]
[366847448,1750510240379,-1160.28879468,0.00024692,4]
[366847449,1750510240391,-756.93683154,0.00024692,4]
[366847450,1750510240410,-455.61957708,0.000192,5]
[366847451,1750510240422,-1503.38042292,0.000192,5]
[366847452,1750510240432,-612.44851861,0.00024692,4]
[366847453,1750510240444,-1235.0,0.00024692,4]
[366847454,1750510240456,-3430.0,0.00024692,4]
[366847455,1750510240467,-44639.91214894,0.00024692,4]
[366847456,1750510241356,-150.0,0.00024416,2]
[366847457,1750510241366,-150.0,0.00024425,2]
[366847458,1750510241375,-150.0,0.00024428,2]
[366847459,1750510241384,-150.0,0.00024433,2]
[366847460,1750510241393,-150.0,0.00024438,2]
[366847461,1750510241403,-150.0,0.00024438,2]
[366847462,1750510241412,-150.0,0.00024439,2]
[366847463,1750510241421,-150.0,0.00024443,2]
[366847464,1750510241430,-150.0,0.00024449,2]
[366847465,1750510241439,-150.0,0.00024449,2]
[366847466,1750510241449,-150.0,0.00024458,2]
[366847467,1750510241458,-150.0,0.00024467,2]
[366847468,1750510241467,-150.0,0.00024469,2]
[366847469,1750510241476,-150.0,0.00024471,2]
[366847470,1750510241485,-150.0,0.00024473,2]
[366847471,1750510241495,-150.0,0.00024481,2]
[366847472,1750510241504,-150.0,0.00024505,2]
[366847473,1750510241513,-65.70199691,0.00024506,2]
[366847474,1750510241525,-84.29800309,0.00024506,2]
[366847475,1750510241534,-150.0,0.0002451,2]
[366847476,1750510241543,-150.0,0.00024511,2]
[366847477,1750510241553,-150.0,0.00024514,2]
[366847478,1750510241563,-150.0,0.00024533,2]
[366847479,1750510241572,-150.0,0.00024544,2]
[366847480,1750510241582,-150.0,0.00024554,2]
[366847481,1750510241591,-150.0,0.00024557,2]
[366847482,1750510241601,-150.0,0.00024558,2]
[366847483,1750510241610,-150.0,0.00024584,2]
[366847484,1750510241619,-150.0,0.00024587,2]
[366847485,1750510241628,-150.0,0.00024593,2]
[366847486,1750510241637,-150.0,0.00024597,2]
[366847487,1750510241647,-150.0,0.00024603,2]
[366847488,1750510241657,-150.0,0.00024616,2]
[366847489,1750510241667,-150.0,0.00024622,2]
[366847490,1750510241677,-150.0,0.00024631,2]
[366847491,1750510241687,-150.0,0.00024633,2]
[366847492,1750510241697,-150.0,0.00024638,2]
[366847493,1750510241707,-150.0,0.00024642,2]
[366847494,1750510241717,-150.0,0.00024686,2]
[366847495,1750510241727,-2316.02436014,0.00024692,2]
[366847496,1750510241755,-150.0,0.00024565,2]
[366847497,1750510241765,-150.0,0.00024664,2]
[366847498,1750510241775,-5280.149504,0.00024692,2]
[366847499,1750510241786,-1736.8770169,0.00024692,2]
[366847500,1750510242071,-150.0,0.00024468,2]
[366847501,1750510242083,-150.0,0.00024471,2]
[366847502,1750510242092,-2.76694782,0.00024547,2]
[366847503,1750510242104,-147.23305218,0.00024547,2]
[366847504,1750510242113,-150.0,0.00024609,2]
[366847505,1750510242124,-461.56475118,0.00024692,2]
[366847506,1750510242143,-150.0,0.00024673,2]
[366847507,1750510242152,-1249.79399091,0.00024692,2]
[366847512,1750510242751,-1872.72815922,0.00024085,2]
[366847513,1750510242764,-832.71712313,0.00024085,2]
[366847514,1750510242773,-150.0,0.00024409,2]
[366847515,1750510242783,-150.0,0.00024413,2]
[366847516,1750510242793,-150.0,0.00024418,2]
[366847517,1750510242804,-150.0,0.00024432,2]
[366847518,1750510242814,-150.0,0.00024433,2]
[366847519,1750510242824,-150.0,0.0002444,2]
[366847520,1750510242834,-150.0,0.0002444,2]
[366847521,1750510242844,-150.0,0.00024442,2]
[366847522,1750510242854,-150.0,0.00024446,2]
[366847523,1750510242864,-150.0,0.00024446,2]
[366847524,1750510242873,-150.0,0.00024451,2]
[366847525,1750510242883,-150.0,0.00024454,2]
[366847526,1750510242893,-150.0,0.00024456,2]
[366847527,1750510242903,-150.0,0.00024464,2]
[366847528,1750510242914,-150.0,0.00024464,2]
[366847529,1750510242923,-150.0,0.00024466,2]
[366847530,1750510242933,-150.0,0.00024466,2]
[366847531,1750510242942,-150.0,0.00024467,2]
[366847532,1750510242952,-150.0,0.00024469,2]
[366847533,1750510242961,-150.0,0.00024473,2]
[366847534,1750510242971,-150.0,0.00024474,2]
[366847535,1750510242980,-43.94059164,0.00024488,2]
[366847536,1750510243008,-150.0,0.0002441,2]
[366847537,1750510243018,-106.05940836,0.00024488,2]
[366847538,1750510243028,-150.0,0.00024491,2]
[366847539,1750510243038,-61.38269952,0.00024495,2]
[366847540,1750510243050,-88.61730048,0.00024495,2]
[366847541,1750510243060,-150.0,0.00024499,2]
[366847542,1750510243069,-150.0,0.00024501,2]
[366847543,1750510243082,-150.0,0.00024502,2]
[366847544,1750510243092,-150.0,0.00024507,2]
[366847545,1750510243102,-150.0,0.00024507,2]
[366847546,1750510243111,-150.0,0.00024509,2]
[366847547,1750510243122,-150.0,0.0002451,2]
[366847548,1750510243132,-150.0,0.0002451,2]
[366847549,1750510243143,-150.0,0.00024514,2]
[366847550,1750510243153,-150.0,0.00024517,2]
[366847551,1750510243164,-150.0,0.00024526,2]
[366847552,1750510243174,-150.0,0.0002453,2]
[366847554,1750510243184,-150.0,0.00024533,2]
[366847556,1750510243194,-150.0,0.00024535,2]
[366847557,1750510243204,-150.0,0.00024538,2]
[366847558,1750510243213,-150.0,0.00024538,2]
[366847559,1750510243222,-150.0,0.00024542,2]
[366847560,1750510243232,-150.0,0.00024547,2]
[366847561,1750510243242,-150.0,0.00024552,2]
[366847562,1750510243252,-150.0,0.00024556,2]
[366847563,1750510243261,-150.0,0.00024557,2]
[366847564,1750510243271,-150.0,0.00024557,2]
[366847565,1750510243289,-150.0,0.00024566,2]
[366847566,1750510243302,-150.0,0.00024567,2]
[366847567,1750510243312,-150.0,0.00024573,2]
[366847568,1750510243323,-150.0,0.00024579,2]
[366847569,1750510243333,-150.0,0.0002459,2]
[366847570,1750510243343,-150.0,0.00024593,2]
[366847571,1750510243353,-150.0,0.00024595,2]
[366847572,1750510243364,-150.0,0.00024597,2]
[366847573,1750510243375,-150.0,0.00024597,2]
[366847574,1750510243385,-150.0,0.00024599,2]
[366847575,1750510243397,-150.0,0.00024602,2]
[366847576,1750510243407,-150.0,0.00024608,2]
[366847577,1750510243417,-150.0,0.00024608,2]
[366847578,1750510243427,-150.0,0.00024609,2]
[366847579,1750510243437,-150.0,0.00024612,2]
[366847580,1750510243447,-150.0,0.00024616,2]
[366847581,1750510243458,-150.0,0.00024617,2]
[366847582,1750510243468,-150.0,0.00024619,2]
[366847583,1750510243478,-150.0,0.00024619,2]
[366847584,1750510243488,-150.0,0.0002462,2]
[366847585,1750510243499,-150.0,0.00024621,2]
[366847586,1750510243508,-150.0,0.00024624,2]
[366847587,1750510243519,-150.0,0.00024625,2]
[366847588,1750510243529,-150.0,0.00024633,2]
[366847589,1750510243538,-150.0,0.00024634,2]
[366847590,1750510243548,-150.0,0.00024638,2]
[366847592,1750510243560,-150.0,0.00024638,2]
[366847594,1750510243570,-150.0,0.00024642,2]
[366847596,1750510243580,-76.20746446,0.00024646,2]
[366847599,1750510243606,-150.0,0.00024547,2]
[366847601,1750510243616,-150.0,0.00024551,2]
[366847603,1750510243626,-150.0,0.00024586,2]
[366847605,1750510243636,-73.79253554,0.00024646,2]
[366847607,1750510243646,-150.0,0.00024652,2]
[366847609,1750510243656,-150.0,0.00024662,2]
[366847611,1750510243666,-150.0,0.00024662,2]
[366847612,1750510243676,-150.0,0.00024663,2]
[366847613,1750510243687,-150.0,0.0002467,2]
[366847614,1750510243697,-150.0,0.00024671,2]
[366847615,1750510243707,-150.0,0.00024672,2]
[366847616,1750510243717,-150.0,0.00024674,2]
[366847617,1750510243727,-150.0,0.00024675,2]
[366847618,1750510243737,-150.0,0.00024678,2]
[366847619,1750510243747,-150.0,0.00024678,2]
[366847620,1750510243757,-150.0,0.00024679,2]
[366847621,1750510243767,-150.0,0.00024689,2]
[366847622,1750510243779,-150.0,0.0002469,2]
[366847623,1750510243789,-10967.17984784,0.00024692,2]
[366847624,1750510243799,-7649.56258215,0.00024692,4]
[366847625,1750510243811,-1178.28178068,0.00024692,4]
[366847626,1750510243884,-150.0,0.00024433,2]
[366847627,1750510243894,-150.0,0.00024463,2]
[366847628,1750510243904,-150.0,0.00024478,2]
[366847629,1750510243914,-150.0,0.0002449,2]
[366847630,1750510243924,-150.0,0.00024499,2]
[366847631,1750510243934,-150.0,0.0002459,2]
[366847632,1750510243943,-150.0,0.00024626,2]
[366847633,1750510243953,-150.0,0.00024637,2]
[366847634,1750510243963,-150.0,0.00024654,2]
[366847635,1750510243972,-95.53096591,0.00024692,4]
[366847636,1750510243984,-267.45896499,0.00024692,4]
[366847658,1750510246549,-2557.06826987,0.00024692,4]
[366847659,1750510246561,-28047.92296627,0.00024692,4]
[366847660,1750510246572,-980.0,0.00024692,4]
[366847664,1750510628668,1000.0,0.00024658,120]
[366847666,1750510642106,161.4,0.00013699,2]
[366847667,1750510650367,1000.0,0.00022,30]
[366847668,1750510678017,1853.98,0.00014001,2]
[366847675,1750511334186,-227.74647887,0.0002,4]
[366847676,1750511334726,-262.25352113,0.0002,7]
[366847677,1750511334757,-227.74647887,0.0002,4]
[366847678,1750511334788,-262.25352113,0.0002,7]
[366847679,1750511334822,-227.74647887,0.0002,4]
[366847680,1750511334854,-262.25352113,0.0002,7]
[366847681,1750511334885,-161.4,0.00020187,2]
[366847682,1750511334917,-185.07486853,0.00020924,2]
[366847683,1750511334952,-62.85026294,0.00021024,2]
[366847684,1750511334965,-227.74647887,0.00021024,2]
[366847685,1750511335019,-13.60325819,0.00021024,2]
[366847686,1750511335030,-248.65026294,0.00021024,2]
[366847687,1750511335042,-54.11973706,0.00021024,2]
[366847688,1750511335052,-173.62674181,0.00021077,2]
[366847689,1750511335064,-262.25352113,0.00021077,2]
[366847690,1750511335079,-227.74647887,0.00021077,2]
[366847691,1750511335090,-262.25352113,0.00021077,2]
[366847692,1750511335120,-161.4,0.00021077,2]
[366847693,1750511335131,-112.71973706,0.00021077,2]
[366847694,1750511335141,-72.35513147,0.00021078,2]
[366847695,1750511335152,-304.2,0.00021078,2]
[366847704,1750511432034,-202.0,0.00020854,2]
[366847705,1750511432044,-362.08793815,0.00020978,2]
[366847706,1750511432055,-586.92837782,0.00020978,2]
[366847707,1750511432158,-50.88278403,0.00020978,2]
[366847708,1750511432167,-2123.44486853,0.00021078,2]
[366847709,1750511432177,-27.22116401,0.00021078,2]
[366847710,1750511432189,-221.24883599,0.00021078,2]
[366847711,1750511432199,-254.6,0.00021078,2]
[366847712,1750511432208,-16.70389321,0.00021078,2]
[366847713,1750511432248,-287.55610679,0.00021078,2]
[366847714,1750511432258,-253.95,0.00021078,2]
[366847715,1750511432268,-1180.45908071,0.00021952,2]
[366847716,1750511432285,-369.93517089,0.00021952,2]
[366848243,1750511437859,-318.4925114,0.00021952,2]
[366848246,1750511437874,-7316.4059618,0.00021952,2]
[366848248,1750511437884,-1200.0,0.00021967,2]
[366848250,1750511437893,-254.44,0.00021968,2]
[366848252,1750511437902,-247.34,0.00021968,2]
[366848253,1750511437912,-252.35,0.00021968,2]
[366848255,1750511437921,-302.84,0.00021968,2]
[366848257,1750511437930,-305.84,0.00021968,2]
[366848259,1750511437941,-254.24,0.00021969,2]
[366848261,1750511437950,-252.5,0.00021969,2]
[366848263,1750511437959,-304.59,0.00021969,2]
[366848265,1750511437969,-253.12,0.00021969,2]
[366848267,1750511437978,-254.66,0.00021969,2]
[366848269,1750511437987,-304.93,0.00021969,2]
[366848271,1750511437997,-250.76,0.00021969,2]
[366848273,1750511438006,-246.54,0.00021969,2]
[366848275,1750511438015,-300.51,0.00021969,2]
[366848277,1750511438024,-251.77,0.00021969,2]
[366848279,1750511438034,-305.7,0.00021969,2]
[366848281,1750511438043,-253.13,0.00021969,2]
[366848283,1750511438052,-250.58,0.00021969,2]
[366848285,1750511438061,-304.71,0.00021969,2]
[366848287,1750511438070,-253.04,0.00021969,2]
[366848289,1750511438079,-373.0,0.00021975,2]
[366848291,1750511438089,-171.0,0.00021975,2]
[366848293,1750511438099,-151.0,0.00022057,2]
[366848295,1750511438108,-151.0,0.00022057,2]
[366848297,1750511438118,-151.0,0.00022057,2]
[366848299,1750511438127,-151.0,0.00022057,2]
[366848301,1750511438136,-151.0,0.00022057,2]
[366848303,1750511438145,-285.80488263,0.00022057,2]
[366848305,1750511438155,-304.45,0.00022069,2]
[366848307,1750511438164,-245.34,0.00022069,2]
[366848309,1750511438173,-245.12,0.00022069,2]
[366848311,1750511438183,-300.54,0.00022069,2]
[366848313,1750511438192,-247.18,0.00022069,2]
[366848315,1750511438201,-254.68,0.00022069,2]
[366848317,1750511438210,-302.39,0.00022069,2]
[366848319,1750511438219,-320.0,0.0002207,2]
[366848320,1750511438228,-248.31,0.0002207,2]
[366848322,1750511438238,-302.75,0.0002207,2]
[366848326,1750511438248,-254.26,0.0002207,2]
[366848328,1750511438258,-254.2,0.0002207,2]
[366848330,1750511438268,-249.77,0.0002207,2]
[366848332,1750511438277,-300.97,0.0002207,2]
[366848334,1750511438286,-246.99,0.0002207,2]
[366848336,1750511438295,-245.12,0.0002207,2]
[366848338,1750511438305,-301.67,0.0002207,2]
[366848340,1750511438317,-248.78,0.0002207,2]
[366848342,1750511438326,-247.4,0.0002207,2]
[366848344,1750511438335,-300.92,0.0002207,2]
[366848346,1750511438345,-248.79,0.0002207,2]
[366848348,1750511438354,-304.88,0.0002207,2]
[366848350,1750511438363,-247.56,0.0002207,2]
[366848352,1750511438373,-253.3,0.0002207,2]
[366848354,1750511438382,-303.39,0.0002207,2]
[366848356,1750511438391,-253.64,0.0002207,2]
[366848358,1750511438400,-252.04,0.0002207,2]
[366848360,1750511438409,-304.91,0.0002207,2]
[366848362,1750511438419,-252.95,0.0002207,2]
[366848364,1750511438428,-254.37,0.0002207,2]
[366848366,1750511438438,-247.63,0.0002207,2]
[366848367,1750511438447,-247.43,0.0002207,2]
[366848369,1750511438456,-300.86,0.0002207,2]
[366848372,1750511438465,-300.25,0.0002207,2]
[366848374,1750511438475,-248.24,0.00022071,2]
[366848375,1750511438484,-250.29,0.00022071,2]
[366848378,1750511438497,-251.97,0.00022071,2]
[366848379,1750511438506,-305.57,0.00022072,2]
[366848382,1750511438516,-248.9,0.00022082,2]
[366848383,1750511438525,-248.59,0.00022082,2]
[366848385,1750511438535,-301.7,0.00022093,2]
[366848387,1750511438544,-202.0,0.00022117,3]
[366848389,1750511438553,-191.52175083,0.00022124,2]
[366848392,1750511438563,-305.78,0.00022155,2]
[366848394,1750511438572,-2500.0,0.00022206,2]
[366848395,1750511438581,-500.0,0.00022206,2]
[366848398,1750511438590,-320.0,0.00022206,2]
[366848400,1750511438600,-666.0,0.0002221,2]
[366848402,1750511438609,-35472.56606769,0.00022218,2]
[366848404,1750511438619,-200.0,0.00022238,2]
[366848405,1750511438628,-281.91,0.00022241,2]
[366848407,1750511438637,-250.18,0.00022279,2]
[366848408,1750511438646,-160.26,0.00022303,2]
[366848409,1750511438655,-511.97394804,0.0002234,2]
[366848410,1750511438666,-1000.0,0.00022359,2]
[366848411,1750511438675,-2751.0,0.000224,2]
[366848412,1750511438684,-150.99,0.00022562,2]
[366848413,1750511438693,-150.99,0.00022562,2]
[366848414,1750511438703,-320.0,0.00022578,2]
[366848416,1750511438712,-253.26,0.00022738,2]
[366848418,1750511438722,-1000.0,0.00022773,2]
[366848420,1750511438731,-415.05736864,0.00022839,2]
[366848422,1750511438741,-1797.16,0.00022884,2]
[366848424,1750511438750,-163.27,0.0002289,2]
[366848426,1750511438759,-256.00217047,0.000229,8]
[366848428,1750511438769,-250.0,0.00022919,2]
[366848430,1750511438779,-331.18473269,0.00023,2]
[366848433,1750511438789,-150.0,0.00023054,2]
[366848435,1750511438799,-819.09,0.00023065,2]
[366848437,1750511438808,-897.33,0.00023111,2]
[366848439,1750511438817,-150.0,0.00023137,2]
[366848441,1750511438827,-320.0,0.00023152,2]
[366848443,1750511438836,-23900.0,0.00023156,2]
[366848445,1750511438845,-200.0,0.00023202,2]
[366848446,1750511438854,-150.0,0.00023304,2]
[366848449,1750511438865,-202.0,0.0002338,5]
[366848450,1750511438879,-150.0,0.0002338,2]
[366848452,1750511438888,-150.0,0.00023417,2]
[366848453,1750511438897,-256.00217043,0.00023417,9]
[366848454,1750511438906,-150.0,0.00023446,2]
[366848455,1750511438915,-151.0,0.00023455,2]
[366848456,1750511438925,-2030.29667201,0.00023455,2]
[366848457,1750511438934,-207.4,0.00023455,2]
[366848458,1750511438944,-150.0,0.00023518,2]
[366848459,1750511438953,-320.0,0.0002353,2]
[366848460,1750511438962,-166.93,0.00023571,2]
[366848461,1750511438971,-500.0,0.00023674,3]
[366848462,1750511438980,-200.0,0.00023723,7]
[366848463,1750511438990,-247.7,0.00023764,2]
[366848464,1750511438999,-251.76,0.00023764,2]
[366848465,1750511439009,-253.86,0.00023764,2]
[366848466,1750511439018,-304.84,0.00023769,2]
[366848467,1750511439027,-156.0,0.00023776,2]
[366848468,1750511439036,-4095.0,0.00023776,2]
[366848469,1750511439046,-250.94,0.00023788,2]
[366848470,1750511439055,-301.17,0.00023788,2]
[366848471,1750511439064,-253.46,0.00023788,2]
[366848472,1750511439073,-250.4,0.00023827,2]
[366848473,1750511439083,-303.08,0.00023827,2]
[366848474,1750511439093,-253.51,0.00023827,2]
[366848475,1750511439102,-254.27,0.00023827,2]
[366848476,1750511439111,-248.39,0.00023827,2]
[366848477,1750511439120,-301.98,0.00023827,2]
[366848478,1750511439129,-150.0,0.00023828,2]
[366848479,1750511439139,-150.0,0.00023828,2]
[366848480,1750511439148,-150.0,0.00023828,2]
[366848481,1750511439157,-150.0,0.00023828,2]
[366848482,1750511439167,-150.0,0.00023828,2]
[366848483,1750511439176,-150.0,0.00023828,2]
[366848484,1750511439186,-3335.0,0.00023828,2]
[366848485,1750511439195,-946.0,0.00023828,2]
[366848486,1750511439204,-803.0,0.00023828,2]
[366848487,1750511439213,-638.0,0.00023828,2]
[366848488,1750511439223,-591.0,0.00023828,2]
[366848489,1750511439232,-1081.907,0.00023828,2]
[366848490,1750511439241,-2005.0,0.00023828,2]
[366848491,1750511439250,-559.0,0.00023828,2]
[366848492,1750511439260,-928.0,0.00023828,2]
[366848493,1750511439269,-1676.0,0.00023828,2]
[366848494,1750511439278,-189.86,0.00023836,2]
[366848495,1750511439287,-150.0,0.00023852,2]
[366848496,1750511439297,-150.0,0.00023853,2]
[366848497,1750511439307,-150.0,0.00023868,2]
[366848498,1750511439316,-150.0,0.00023911,2]
[366848499,1750511439326,-150.0,0.0002392,2]
[366848500,1750511439335,-256.00217043,0.00023934,10]
[366848501,1750511439345,-500.0,0.00023955,2]
[366848502,1750511439354,-170.89,0.00023959,2]
[366848503,1750511439364,-3335.03060695,0.00023964,2]
[366848504,1750511439375,-150.0,0.00024051,2]
[366848505,1750511439385,-150.0,0.00024054,2]
[366848506,1750511439395,-500.0,0.00024064,30]
[366848507,1750511439405,-500.0,0.00024064,30]
[366848508,1750511439414,-150.49237548,0.00024064,30]
[366848509,1750511439424,-500.0,0.00024064,30]
[366848510,1750511439434,-500.0,0.00024064,30]
[366848511,1750511439443,-500.0,0.00024064,30]
[366848512,1750511439452,-500.0,0.00024064,30]
[366848513,1750511439461,-500.0,0.00024064,30]
[366848514,1750511439470,-150.0,0.00024064,30]
[366848516,1750511439480,-500.0,0.00024064,30]
[366848518,1750511439489,-429.0,0.00024064,30]
[366848519,1750511439499,-500.0,0.00024064,30]
[366848520,1750511439508,-150.0,0.00024064,30]
[366848521,1750511439518,-500.0,0.00024064,30]
[366848522,1750511439527,-500.0,0.00024064,30]
[366848524,1750511439839,-150.44106238,0.00024064,30]
[366848525,1750511439849,-500.0,0.00024064,30]
[366848526,1750511439859,-150.0,0.00024064,30]
[366848527,1750511439872,-194.9415857,0.00024064,30]
[366848528,1750511439882,-500.0,0.00024064,30]
[366848529,1750511439892,-500.0,0.00024064,30]
[366848530,1750511439902,-150.0,0.00024064,30]
[366848531,1750511439914,-150.0,0.00024064,30]
[366848532,1750511439924,-500.0,0.00024064,2]
[366848533,1750511439934,-500.0,0.00024064,2]
[366848534,1750511439944,-500.0,0.00024064,30]
[366848535,1750511439954,-500.0,0.00024064,30]
[366848536,1750511439963,-500.0,0.00024064,2]
[366848537,1750511439973,-500.0,0.00024064,30]
[366848538,1750511439983,-150.0,0.00024064,30]
[366848539,1750511439992,-500.0,0.00024064,2]
[366848540,1750511440001,-622.0,0.00024064,14]
[366848541,1750511440011,-500.0,0.00024064,30]
[366848542,1750511440020,-500.0,0.00024064,30]
[366848543,1750511440030,-150.0,0.00024064,2]
[366848544,1750511440039,-150.0,0.00024064,30]
[366848545,1750511440049,-500.0,0.00024064,30]
[366848546,1750511440059,-500.0,0.00024064,30]
[366848547,1750511440068,-500.0,0.00024064,30]
[366848548,1750511440078,-500.0,0.00024064,30]
[366848549,1750511440088,-161.20205755,0.00024064,30]
[366848550,1750511440098,-150.0,0.00024064,30]
[366848551,1750511440107,-291.61889196,0.00024064,30]
[366848552,1750511440117,-500.0,0.00024064,30]
[366848553,1750511440126,-150.0,0.00024064,2]
[366848554,1750511440136,-500.0,0.00024064,30]
[366848555,1750511440146,-1000.0,0.00024072,2]
[366848556,1750511440155,-500.0,0.00024091,30]
[366848557,1750511440165,-500.0,0.00024091,30]
[366848558,1750511440174,-500.0,0.00024091,30]
[366848559,1750511440184,-500.0,0.00024091,30]
[366848560,1750511440194,-500.0,0.00024091,30]
[366848561,1750511440204,-500.0,0.00024091,30]
[366848562,1750511440214,-500.0,0.00024091,30]
[366848563,1750511440223,-155.82849506,0.00024091,30]
[366848564,1750511440233,-500.0,0.00024091,30]
[366848565,1750511440242,-429.0,0.00024091,30]
[366848566,1750511440252,-500.0,0.00024091,30]
[366848567,1750511440261,-150.0,0.00024091,30]
[366848568,1750511440270,-500.0,0.00024091,30]
[366848569,1750511440280,-500.0,0.00024091,30]
[366848570,1750511440289,-500.0,0.00024091,30]
[366848571,1750511440299,-150.0,0.00024091,30]
[366848572,1750511440308,-500.0,0.00024091,30]
[366848573,1750511440318,-500.0,0.00024091,30]
[366848574,1750511440327,-150.0,0.00024091,30]
[366848575,1750511440337,-150.0,0.00024091,30]
[366848576,1750511440347,-500.0,0.00024091,2]
[366848577,1750511440357,-500.0,0.00024091,2]
[366848579,1750511440366,-500.0,0.00024091,30]
[366848580,1750511440376,-500.0,0.00024091,30]
[366848582,1750511440386,-500.0,0.00024091,2]
[366848584,1750511440395,-500.0,0.00024091,30]
[366848586,1750511440405,-150.0,0.00024091,30]
[366848587,1750511440415,-500.0,0.00024091,2]
[366848589,1750511440424,-622.0,0.00024091,14]
[366848591,1750511440434,-508.05917183,0.00024091,30]